Cogmind - Beta 14 @@@ ROGUE MODE // 2024.10.23 @ 12:37:37 Player: Ae Result: Destroyed by W9-UFO(R) with Subdweller Shrapnel Launcher Performance ------------- Evolutions (0) 0 Regions Visited (2) 400 Robots Destroyed (31) 155 Value Destroyed (564) 564 Prototype IDs (0) 0 Alien Tech Used (0) 0 Bonus (0) 0 TOTAL SCORE: 1119 Bonus ------- None Cogmind --------- Core Integrity 0/250 Matter 270/300 Energy 108/170 System Corruption 0% Temperature Cool (0) Movement Rolling (175) Ox5 Location -10/Subcaves Parts ------- > --- POWER (1) -------- Makeshift Power Source > --- PROPULSION (2) --- Compact Wheel > --- UTILITY (2) ------ Huge Storage Unit Seismic Detector > --- WEAPON (2) ------- Light EM Pulse Cannon > --- INVENTORY (25) --- Improved Ion Engine Subdweller Power Source Subdweller Power Source Light Treads Spiked Treads Subdweller Monowheel Subdweller Monowheel Subdweller Monowheel Heat Sink Large Storage Unit Structural Scanner Subdweller Optics Subdweller Optics Improved Terrain Scanner Light Armor Plating Light Armor Plating Subdweller Laser Light EM Pulse Cannon Beam Cannon Subdweller Beam Cannon Subdweller Beam Cannon Subdweller Machine Gun Subdweller Machine Gun Battle Cannon Mining Laser Peak State ------------ > --- POWER ------------ Makeshift Power Source > --- PROPULSION ------- Light Treads Compact Wheel > --- UTILITY ---------- Huge Storage Unit Light Armor Plating > --- WEAPON ----------- Light EM Pulse Cannon Makeshift Shrapnel Gun > --- INVENTORY -------- Improved Ion Engine Subdweller Power Source Subdweller Power Source Light Treads Spiked Treads Subdweller Monowheel Subdweller Monowheel Subdweller Monowheel Subdweller Monowheel Heat Sink Large Storage Unit Structural Scanner Subdweller Optics Subdweller Optics Improved Terrain Scanner Seismic Detector Light Armor Plating Subdweller Laser Light EM Pulse Cannon Beam Cannon Subdweller Machine Gun Subdweller Machine Gun Subdweller Machine Gun Battle Cannon Mining Laser [Rating: 18] Favorites ----------- Power Makeshift Power Source Engine Makeshift Power Source Propulsion Light Treads Treads Light Treads Wheel Compact Wheel Utility Huge Storage Unit Device Seismic Detector Storage Huge Storage Unit Protection Light Armor Plating Weapon Light EM Pulse Cannon Energy Gun Medium Laser Energy Cannon Light EM Pulse Cannon Ballistic Gun Makeshift Shrapnel Gun Ballistic Cannon Battle Cannon Launcher Grenade Launcher Special Weapon Mining Laser Build | -11 -10 -10 ------- Run | Yrd Mat Sub Slots Evolved . | . . . Power . | . . . Propulsion . | . . . Utility . | . . . Weapon . | . . . Parts Attached 49 | 9 18 22 Power 3 | 1 . 2 Engine 3 | 1 . 2 Core . | . . . Reactor . | . . . Propulsion 7 | 3 2 2 Treads 2 | 1 . 1 Leg . | . . . Wheel 5 | 2 2 1 Hover . | . . . Flight . | . . . Utility 9 | 2 3 4 Device 4 | 1 1 2 Storage 3 | 1 1 1 Processor . | . . . Hackware . | . . . Protection 2 | . 1 1 Artifact . | . . . Weapon 30 | 3 13 14 Energy Gun 5 | 2 3 . Energy Cannon 4 | . 2 2 Ballistic Gun 8 | 1 2 5 Ballistic Cannon 1 | . . 1 Launcher 7 | . 5 2 Special Weapon 5 | . 1 4 Impact Weapon . | . . . Slashing Weapon . | . . . Piercing Weapon . | . . . Special Melee Weapon . | . . . Unidentified Prototypes . | . . . Parts Lost 5 | . . 5 Power . | . . . Propulsion 2 | . . 2 Utility . | . . . Weapon 3 | . . 3 Highest Loss Streak 3 | . . 3 To Critical Strikes . | . . . Average Slot Usage (%) 99 | . 99 99 Engine 14 | . 14 14 Treads 13 | . 14 13 Wheel 14 | . 14 14 Device 6 | . 7 6 Storage 14 | . 14 14 Protection 7 | . 6 7 Energy Gun 2 | . 7 . Energy Cannon 12 | . 9 13 Ballistic Gun 7 | . 7 7 Special Weapon 3 | . 1 5 Peak Build Rating 18 | 7 10 18 Average Rating 12 | 5 8 15 On Entrance 5 | . 7 10 Naked Turns . | . . . Heaviest Build 96 | 13 36 96 Greatest Support 26 | 26 10 26 Greatest Overweight (x) 5 | 3 3 5 Average Overweight (x) 3 | . 2 4 Largest Inventory Capacity 25 | 8 15 25 Average Capacity 19 | 7 12 24 Most Carried 25 | 6 15 25 Average Carried 17 | 4 11 22 Final Capacity 25 | 8 15 25 Final Carried 25 | 6 15 25 Class Distribution -------------------- 97% | Mutant Dominant Class ---------------- Mutant | -10/Materials Mutant | -10/Subcaves Resources | -11 -10 -10 ----------- Run | Yrd Mat Sub Matter Collected 995 | 297 285 413 Remotely . | . . . Salvage Created 652 | 91 329 232 Parts 53 | 9 18 26 Haulers Intercepted 1 | . 1 . Recyclers Shooed . | . . . Parts Field Recycled . | . . . Retrieved Matter . | . . . Parts Self-Destructed 20 | . . 20 Prevented 4 | . . 4 Kills | -11 -10 -10 ------- Run | Yrd Mat Sub Combat Hostiles Destroyed 20 | . 10 10 Guns 1 | . 1 . Cannons 4 | . 1 3 AOE 14 | . 8 6 Classes Destroyed 11 | 2 7 2 Worker 3 | . 3 . Builder 1 | . 1 . Tunneler 2 | 2 . . Hauler 1 | . 1 . Recycler 1 | 1 . . Turret 2 | . . 2 Watcher 1 | . 1 . Swarmer 11 | . 5 6 Grunt 5 | . 4 1 Sentry 1 | . . 1 Subdweller 3 | . 1 2 Best Kill Streak 4 | 2 4 4 Combat Bots Only 4 | . 3 4 Max Kills in Single Turn 3 | 1 3 2 Gunslinging . | . . . Exploded 2 | . 2 2 Melee . | . . . Uniques/NPCs Destroyed . | . . . Combat | -11 -10 -10 -------- Run | Yrd Mat Sub Hostile Shots Fired 105 | . 21 84 Missed 37 | . 7 30 Damage Taken 950 | . 222 728 Core 278 | . 85 193 Absorbed by Shields . | . . . Core Remaining (%) 100 | 100 . . Volleys Fired 149 | 12 30 107 Largest 2 | 2 2 2 Hottest 156 | 80 112 156 Shots Fired 188 | 24 50 114 Gun 68 | 24 36 8 Cannon 16 | . 4 12 Launcher 31 | . 9 22 Special 73 | . 1 72 Kinetic 33 | 7 18 8 Thermal 108 | 17 19 72 Explosive 31 | . 9 22 Electromagnetic 16 | . 4 12 Robot Hit Streak 15 | 4 11 15 Robot Miss Streak 3 | 2 3 2 Penetration Max . | . . . Secondary Targets 1 | . 1 . Max Gunslinging Chain 1 | . 1 . Shots Hit Robots 62 | 13 31 18 Core Hits 41 | 4 19 18 Critical Kills . | . . . Critical Parts Destroyed . | . . . Critical Strikes 1 | . 1 . Burn 1 | . 1 . Melee Attacks . | . . . Impact . | . . . Slashing . | . . . Piercing . | . . . Sneak Attacks . | . . . Combat Hostiles . | . . . Follow-up Attacks . | . . . Damage Inflicted 1698 | 148 813 737 Guns 539 | 148 253 138 Cannons 278 | . 68 210 Explosions 878 | . 489 389 Melee . | . . . Ramming 3 | . 3 . Kinetic 256 | 27 91 138 Thermal 305 | 121 162 22 Explosive 856 | . 489 367 Electromagnetic 278 | . 68 210 Impact . | . . . Slashing . | . . . Piercing . | . . . Highest Corruption . | . . . Average Corruption . | . . . Corruption Purged . | . . . Corruption Blocked . | . . . Overload Shots . | . . . Overflow Damage 31 | . 17 14 Projectiles . | . . . Explosions 31 | . 17 14 Melee . | . . . Knockbacks . | . . . Impact . | . . . Kinetic . | . . . Secondary . | . . . Self-Inflicted Damage 90 | . 27 63 Shots 5 | . 2 3 Rammed 1 | . 1 . Targets Rammed 1 | . 1 . Kicked . | . . . Crushed . | . . . Highest Temperature 60 | 54 60 6 Average Temperature 22 | 26 20 4 Received Heat Transfer 249 | . 69 180 Siege Activations . | . . . Robots Corrupted 1 | . . 1 Combat Hostiles 1 | . . 1 Parts Fried . | . . . Impact Corruptions . | . . . Robots Melted . | . . . Combat Hostiles . | . . . Parts Melted 1 | . 1 . Heat Transferred 880 | 275 555 50 Parts Sabotaged . | . . . Parts Stolen . | . . . Parts Stripped . | . . . Power Chain Reactions 1 | . . 1 Alert | -11 -10 -10 ------- Run | Yrd Mat Sub Peak Influence 208 | 15 208 . Initial 9 | . 9 . Average 84 | 5 92 . Maximum Alert Level 1 | . 1 . Low Security (%) 90 | 100 89 . Level 1 9 | . 10 . Level 2 . | . . . Level 3 . | . . . Level 4 . | . . . Level 5 . | . . . High Security . | . . . Max Security . | . . . Squads Dispatched . | . . . Investigation . | . . . Extermination . | . . . Reinforcement . | . . . Assault . | . . . Garrison . | . . . Intercept . | . . . Searches Triggered . | . . . Construction Impeded . | . . . Haulers Reinforced . | . . . Active Scanning Responses . | . . . Cargo Convoy Interrupts . | . . . Stealth | -11 -10 -10 --------- Run | Yrd Mat Sub Distress Signals 2 | . 2 . Communications Jammed . | . . . Distress Signals . | . . . Times Spotted 44 | . 20 24 Peak Tracking Total 4 | . 4 3 Tactical Retreats 11 | . 3 8 Traps | -11 -10 -10 ------- Run | Yrd Mat Sub Traps Triggered 1 | . . 1 Indirectly . | . . . Trap Hack Attempts . | . . . Triggered . | . . . Disarmed . | . . . Reprogrammed . | . . . Reused . | . . . Traps Extracted . | . . . Installed . | . . . Triggered . | . . . Machines | -11 -10 -10 ---------- Run | Yrd Mat Sub Machines Disabled 3 | . . 3 Max in Single Turn 2 | . . 2 Machines Repaired . | . . . Machines Dismantled . | . . . Machines Sabotaged . | . . . Overloaded Fab Kills . | . . . Hacking | -11 -10 -10 --------- Run | Yrd Mat Sub Machines Accessed 6 | . 6 . Terminals 4 | . 4 . Fabricators . | . . . Repair Stations . | . . . Recycling Units 2 | . 2 . Scanalyzers . | . . . Garrison Access . | . . . Total Hacks 13 | . 13 . Successful 8 | . 8 . Failed 5 | . 5 . Catastrophic . | . . . Database Lockouts . | . . . Manual 11 | . 11 . Terminals 11 | . 11 . Fabricators . | . . . Repair Stations . | . . . Recycling Units 2 | . 2 . Scanalyzers . | . . . Garrison Access . | . . . Terminal Hacks . | . . . Fabricator Hacks . | . . . Repair Station Hacks . | . . . Recycling Unit Hacks 2 | . 2 . Report Inventory 2 | . 2 . Scanalyzer . | . . . Garrison Access Hacks . | . . . Unauthorized Hacks 6 | . 6 . Terminals 6 | . 6 . Botnet 3 | . 3 . Skim 3 | . 3 . Fabricators . | . . . Repair Stations . | . . . Recycling Units . | . . . Scanalyzers . | . . . Garrison Access . | . . . Data Cores Recovered . | . . . Used . | . . . Hacking Detections 5 | . 5 . Full Trace Events . | . . . Feedback Events . | . . . Feedback Blocked . | . . . Robot Schematics Acquired . | . . . Robots Built . | . . . Authchips . | . . . Time . | . . . Total Robot Build Rating . | . . . Part Schematics Acquired . | . . . Parts Built . | . . . Authchips . | . . . Time . | . . . Total Part Build Rating . | . . . Parts Repaired . | . . . Time . | . . . Parts Recycled . | . . . Recycled Matter . | . . . Retrieved Matter . | . . . Retrieved Components . | . . . Parts Scanalyzed . | . . . Part Schematics Acquired . | . . . Parts Damaged . | . . . Bothacking | -11 -10 -10 ------------ Run | Yrd Mat Sub Used RIF Installer . | . . . Robots Hacked . | . . . Non-combat . | . . . Combat . | . . . Robot Hacks Applied . | . . . Relay Couplers Released . | . . . Fabnet Peak Effective % . | . . . Robots Rewired . | . . . Allies Hacked . | . . . Hacks Repelled . | . . . Allies | -11 -10 -10 -------- Run | Yrd Mat Sub Total Allies . | . . . Largest Group . | . . . Highest-Rated Group . | . . . Highest-Rated Ally . | . . . Total Orders . | . . . Ally Attacks . | . . . Total Damage . | . . . Kills . | . . . Allies Corrupted . | . . . Allies Melted . | . . . Intel | -11 -10 -10 ------- Run | Yrd Mat Sub Robot Analysis Total . | . . . Derelict Logs Recovered . | . . . Drone Launches . | . . . Drone Recoveries . | . . . Exploration | -11 -10 -10 ------------- Run | Yrd Mat Sub Turns Passed 3211 | 119 1210 1882 Spaces Moved 1861 | 68 929 864 Core 7 | 7 . . Treads . | . . . Legs . | . . . Wheels 1854 | 61 929 864 Hover . | . . . Flight . | . . . Fastest Speed 50 | 50 95 125 Average Speed 136 | 93 110 167 Slowest Speed 200 | 200 125 175 Overloaded Moves . | . . . Propulsion Burnouts . | . . . Robots Hopped . | . . . Cave-ins Triggered . | . . . Exploration Rate (%) 47 | 4 95 42 Regions Visited 2 Branch Regions 1 Pre-discovered Areas . | . . . Known Exits Taken . | . . . Unknown Exits Taken 2 | 1 1 . Scrap Searched 3 | . . 3 Spaces Dug 14 | . 1 13 Terrain Destroyed 111 | . 63 48 Melee . | . . . Projectile 16 | . 1 15 AOE 95 | . 62 33 Terrain Rammed . | . . . Walls Destroyed . | . . . Machines Disabled . | . . . Actions | -11 -10 -10 --------- Run | Yrd Mat Sub Total 2190 | 96 1058 1036 Wait 77 | 2 59 16 Move 1859 | 67 928 864 Hop . | . . . Pick Up 38 | 6 13 19 Fast Attach 8 | 7 1 . Attach 3 | . . 3 Detach 1 | . 1 . Swap 38 | 2 17 19 Drop 16 | . 8 8 Fire 149 | 12 30 107 Melee . | . . . Ram . | . . . Kick . | . . . Crush 1 | . 1 . Escape Stasis . | . . . Rewire . | . . . Trap . | . . . Miscellaneous . | . . . Route ------- -11/Scrapyard -10/Materials (discovered 6 exits: [*Mat x3] / [*Min x2] / [*Sub]) -10/Subcaves (discovered 1 exit: [*Rec]) History --------- Turn | Location | Event 26 | -11/Scrapyard | Discovered new exit (range 15) 120 | -11/Scrapyard | Entered Materials 243 | -10/Materials | Discovered new exit (range 8) 305 | -10/Materials | Build established: Mutant 374 | -10/Materials | Discovered new exit (range 13) 427 | -10/Materials | Discovered new exit (range 10) 531 | -10/Materials | Discovered new exit (range 12) 720 | -10/Materials | Derelicts attacked the area 930 | -10/Materials | Discovered new exit (range 7) 1047 | -10/Materials | Discovered new exit (range 8) 1330 | -10/Materials | Entered Subcaves 1452 | -10/Subcaves | Shifting Twisted Machinery released Mak. Shrapnel Gun 1452 | -10/Subcaves | Shifting Twisted Machinery released Battle Cannon 1565 | -10/Subcaves | Core integrity fell below 50% 1583 | -10/Subcaves | Discovered new exit (range 14) 1615 | -10/Subcaves | Lost 3 parts (1n2w) 1826 | -10/Subcaves | Ambushed by Subdwellers from Twisted Machinery 2830 | -10/Subcaves | A swath of the cavern ceiling suddenly collapsed 3202 | -10/Subcaves | Disturbed a concealed Subdweller 3205 | -10/Subcaves | Core integrity fell below 20% 3212 | -10/Subcaves | Destroyed by W9-UFO(R) with Subdweller Shrapnel Launcher Last Messages --------------- 02322_ Acquired 20 matter. 02329_ Acquired Sub. Monowheel. 02332_ Acquired Sub. Laser. 02471_ CT-3OG(u) tweaks Twisted Machinery. 02713_ Triggered Shrapnel Trap. 02713_ An expanding cloud of shrapnel blasts out in all directions. 02830_ Y-45 Defender crushed by falling debris. 02830_ Y-45 Defender destroyed. 02830_ 16 Matter crushed. A swath of the cavern ceiling suddenly collapses. 03177_ Dropped Corrupted Sub. Machine Gun. 03178_ Dropped Corrupted Sub. Monowheel. 03179_ Acquired Sub. Beam Cannon. 03188_ Subatomizers dissect the Corrupted Sub. Machine Gun. 03202_ W9-UFO(R) angrily emerges from the Twisted Machinery. 03202_ Subatomizers dissect the Corrupted Sub. Machine Gun. 03203_ W9-UFO(R): "SUBSUB!" 03208_ Mak. Shrapnel Gun destroyed. 03211_ W9-UFO(R) affixes Scrap Shield Fragment to Scrap Shield. 03212_ Lgt. Treads destroyed. Map ----- +----------------------------------------------------+ | ???????????????????????????????????????# #? | | ???????????????????????????????????????# ### #? | | ???????????????????????????????????????# # #? | | ????????????????????????????????????##### ### #? | | ????????????????????????????????????# ## | | ?????????????????????????????????#### ^ | | ???????????????????????????####### ## ## | | ???????????????????????????# ### | | ???????????????????????????# ^ ###?## | | ????????????????????????????# ### ##????## | | ????????????????????????????## ### ####??????? | | ????????????????????????????##" ""# #???####??? | | ????????????????????????????#"" ##?## #??? | | ???????????????????????????### ### #?## | | ?????????????????????????### ## | | ????????????????????????## | | ????????????????????????# #" ^ | | ???????????????????###??## ##" ^ | | ???????????????????? #??######### ## ## | | ????????????????????? ###????#### #####? | | ????????????????????## ####?# ##????? | | ????????????????????# ; #### ##?????? | | ????????????????##$?# ### #######??????? | | ????????????????# &<#; ## ##???????????? | | ?????????????????# R ;## #####???????? | | ???????????????????#$ @ ;# ##???##?? | | ???????????????????## ;## ^ ##?# #?? | | ????????????????????# ;## ## #?? | | ????????????????????# ;;# ^ ##? | | ???????????????????## # #? | | ???????????????????# ; ## ##? | | ??????????????????## ;####### ^ ###?? | | ?????????????????## #### ##?????# ##???? | | ????????????????## [ ##??###????### #????? | | ???????????????## = %##????###??# #####?? | | ??????????????## ##?## #??# ##### #?? | | ????????# ### ## #??# #### #?? | | ?????? #???## #?? | | ????????# # # #### #????### #??? | | ????????????#????# ##??????# #??? | | ?????????????# ## ##?????### #??? | | ?????????????# #?????## ##?? | | ???????????# ###### ##????# #?? | | ????????? ?????# #????## ## ##?? | | ???????? ## ?????## ##????####### ##?? | | ???????? ?# ??????## ###????##### #?? | | ????????# ??##???????# ##?### ## ###?? | | ?????????# ???????????## ### ##???? | | ?????????## ????????????# #????? | | ????????????????????????# ## ##????? | +----------------------------------------------------+ Best States ------------- Heat Dissipation 35 Energy Generation 15 Energy Capacity 265 Matter Stores 300 Matter Capacity 300 Sight Range 16 Terrain Scan Density 10 Armor Coverage 150 Evasion (%) 42 Recoil Reduction 1 Item Schematics ----------------- None Robot Schematics ------------------ None Fabricated ------------ Nothing Alien Tech Used ----------------- None Achievements -------------- None Challenges ------------ None Game ------ Seed MinesnifferPulseScythe Manual? 0 Play Time 00:30:36 Cumulative 84.3 hours Start 2024.10.23 @ 12:01:33 End 2024.10.23 @ 12:37:37 Sessions 1 Manual Loads 0 Difficulty Rogue Special Mode None Game No. 140 Rogue 112 Adventurer 28 Explorer 0 Win Type - Total 0 Types 0/0/0/0/0/0/0/0/0 Lore% 27 Gallery% 30 Achievement% 32 Wizard Run 0 Options --------- Layout 0 ASCII 0 Keyboard 1 Movement Numpad Keybinds 0 Fullscreen 2 Font 36/Smallcaps Map View 76x50 Zoom Use 0% Tactical HUD 1 Map Filters NONE Filters NONE Steam 1 RUN: d0e1c2de-b5c1-48b9-ad40-7544718fdd1f